[Event "FIDE WYCC Girls U18 2023"]
[Site "Montesilvano"]
[Date "2023.11.16"]
[Round "4.9"]
[White "Voriskova, Anna"]
[Black "Katter, Katharina"]
[Result "1-0"]
[ECO "B90"]
[WhiteElo "2065"]
[BlackElo "1887"]
[Annotator "NA RC"]
[PlyCount "69"]
[EventDate "2023.11.13"]
[EventType "swiss"]
[EventCountry "ITA"]
[SourceTitle "playchess.com"]
[Source "ChessBase"]
[SourceQuality "1"]
[TimeControl "40/5400+30:1800+30"]

1. e4 {[%emt 0:00:03]} c5 {[%emt 0:00:15]} 2. Nf3 {[%emt 0:00:10]} d6 {[%emt 0:00:11]} 3. d4 {[%emt 0:00:13]} cxd4 {[%emt 0:00:12]} 4. Nxd4 {[%emt 0:00:08]} Nf6 {[%emt 0:00:14]} 5. Nc3 {[%emt 0:00:14]} a6 {[%emt 0:00:08]} 6. Be3 {[%emt 0:00:17]} e5 {[%emt 0:00:26]} 7. Nf3 {[%emt 0:00:15]} Be7 {[%emt 0:01:20]} 8. Bc4 {[%emt 0:00:51]} O-O {[%emt 0:02:31]} 9. O-O {[%emt 0:00:12]} Be6 {[%emt 0:05:47]} 10. Bb3 {[%emt 0:00:10]} b5 {[%emt 0:04:35]} 11. Nd5 {[%emt 0:12:43]} Nbd7 {[%emt 0:07:01]} 12. a4 {[%emt 0:06:22]} Rc8 {[%emt 0:16:04]} 13. axb5 {[%emt 0:03:10]} axb5 {[%emt 0:03:11]} 14. Ra7 {[%emt 0:09:38]} Bxd5 {[%emt 0:18:02]} 15. Bxd5 {[%emt 0:00:14]} Nxd5 {[%emt 0:00:32]} 16. Qxd5 {[%emt 0:00:41]} Nc5 {[%emt 0:05:05]} 17. c3 {[%emt 0:07:13]} Bf6 {[%emt 0:08:05]} 18. Rfa1 {[%emt 0:06:43]} Qe8 {[%emt 0:04:57]} 19. g3 {[%emt 0:25:24]} Na4 {[%emt 0:06:30]} 20. Qxd6 {[%emt 0:01:08]} Rd8 {[%emt 0:08:36]} 21. Qa6 {[%emt 0:00:54]} Rc8 {[%emt 0:02:29]} 22. Rb1 {[%emt 0:06:01]} h6 {[%emt 0:03:56]} 23. Kg2 {[%emt 0:00:20]} Ra8 {[%emt 0:01:18]} 24. Rxa8 {[%emt 0:02:05]} Qxa8 {[%emt 0:00:01]} 25. Qxb5 {[%emt 0:01:06]} Rb8 {[%emt 0:00:59]} 26. Qc4 {[%emt 0:07:08]} Nxb2 {[%emt 0:00:11]} 27. Qd5 {[%emt 0:02:01]} Qa3 {[%emt 0:00:51]} 28. Nxe5 {[%emt 0:01:04]} Bxe5 {[%emt 0:00:22]} 29. Qxe5 {[%emt 0:00:02]} Rb3 {[%emt 0:00:39]} 30. Qe8+ {[%emt 0:01:12]} Kh7 {[%emt 0:00:09]} 31. Qxf7 {[%emt 0:00:13]} Qa6 {[%emt 0:00:49]} 32. Bd4 {[%emt 0:00:48]} Rb7 {[%emt 0:00:06]} 33. Qf5+ {[%emt 0:00:20]} Kg8 {[%emt 0:00:01]} 34. Qc8+ {[%emt 0:00:28]} Kh7 {[%emt 0:00:17]} 35. Rxb2 {[%emt 0:00:06]} 1-0

[Event "FIDE WYCC Girls U18 2023"]
[Site "Montesilvano"]
[Date "2023.11.16"]
[Round "4.10"]
[White "Nguyen, Thien Ngan"]
[Black "Liu, Kelsey"]
[Result "1/2-1/2"]
[ECO "B44"]
[WhiteElo "1891"]
[BlackElo "2051"]
[Annotator "NA RC"]
[PlyCount "80"]
[EventDate "2023.11.13"]
[EventType "swiss"]
[EventCountry "ITA"]
[SourceTitle "playchess.com"]
[Source "ChessBase"]
[SourceQuality "1"]
[TimeControl "40/5400+30:1800+30"]

1. e4 {[%emt 0:00:04]} c5 {[%emt 0:00:08]} 2. Nf3 {[%emt 0:00:07]} e6 {[%emt 0:00:13]} 3. d4 {[%emt 0:00:08]} cxd4 {[%emt 0:00:04]} 4. Nxd4 {[%emt 0:00:07]} Nc6 {[%emt 0:00:05]} 5. c4 {[%emt 0:00:17]} Nf6 {[%emt 0:00:13]} 6. Nc3 {[%emt 0:00:09]} Bb4 {[%emt 0:00:17]} 7. Nxc6 {[%emt 0:00:08]} bxc6 {[%emt 0:00:07]} 8. Bd3 {[%emt 0:00:08]} e5 {[%emt 0:02:15]} 9. O-O {[%emt 0:00:57]} h6 {[%emt 0:02:46]} 10. Na4 {[%emt 0:10:04]} O-O {[%emt 0:05:09]} 11. a3 {[%emt 0:12:33]} Be7 {[%emt 0:00:46]} 12. Qe2 {[%emt 0:06:09]} d6 {[%emt 0:05:03]} 13. h3 {[%emt 0:01:40]} Bb7 {[%emt 0:04:10]} 14. b4 {[%emt 0:10:15]} Re8 {[%emt 0:20:59]} 15. Be3 {[%emt 0:14:53]} Nd7 {[%emt 0:06:45]} 16. Rfd1 {[%emt 0:03:40]} Nf8 {[%emt 0:01:33]} 17. c5 {[%emt 0:06:05]} Ne6 {[%emt 0:22:21]} 18. cxd6 {[%emt 0:07:41]} Bxd6 {[%emt 0:04:23]} 19. Ba6 {[%emt 0:16:05]} Bxa6 {[%emt 0:09:13]} 20. Qxa6 {[%emt 0:00:09]} Nd4 {[%emt 0:01:04]} 21. Rac1 {[%emt 0:05:35]} Re6 {[%emt 0:04:00]} 22. Qc4 {[%emt 0:03:24]} Rg6 {[%emt 0:03:24]} 23. Bxd4 {[%emt 0:00:48]} Qg5 {[%emt 0:00:11]} 24. g3 {[%emt 0:00:43]} exd4 {[%emt 0:00:03]} 25. Qd3 {[%emt 0:00:33]} a5 {[%emt 0:02:37]} 26. Nb6 {[%emt 0:00:18]} Rb8 {[%emt 0:03:43]} 27. bxa5 {[%emt 0:00:05]} Qxa5 {[%emt 0:00:14]} 28. Nc4 {[%emt 0:00:07]} Qh5 {[%emt 0:00:09]} 29. Nxd6 {[%emt 0:00:08]} Rxd6 {[%emt 0:00:08]} 30. Kg2 {[%emt 0:00:47]} c5 {[%emt 0:01:27]} 31. Rd2 {[%emt 0:00:24]} Rdb6 {[%emt 0:00:20]} 32. Qe2 {[%emt 0:01:15]} Qe5 {[%emt 0:01:04]} 33. Rdc2 {[%emt 0:00:16]} Rc6 {[%emt 0:01:12]} 34. Qd3 {[%emt 0:00:13]} Re8 {[%emt 0:00:37]} 35. Rc4 {[%emt 0:00:37]} Ree6 {[%emt 0:00:42]} 36. a4 {[%emt 0:00:41]} Qc7 {[%emt 0:00:26]} 37. Qc2 {[%emt 0:00:42]} Qe5 {[%emt 0:00:19]} 38. Qd3 {[%emt 0:00:09]} Qc7 {[%emt 0:00:25]} 39. Qc2 {[%emt 0:00:19]} Qe5 {[%emt 0:00:41]} 40. Qd3 {[%emt 0:00:00]} Qc7 {[%emt 0:00:00]} 1/2-1/2

[Event "FIDE WYCC Girls U18 2023"]
[Site "Montesilvano"]
[Date "2023.11.16"]
[Round "4.11"]
[White "Petricenco, Ana"]
[Black "Sevcikova, Lucia"]
[Result "1-0"]
[ECO "C00"]
[WhiteElo "1902"]
[BlackElo "2047"]
[Annotator "NA RC"]
[PlyCount "107"]
[EventDate "2023.11.13"]
[EventType "swiss"]
[EventCountry "ITA"]
[SourceTitle "playchess.com"]
[Source "ChessBase"]
[SourceQuality "1"]
[TimeControl "40/5400+30:1800+30"]

1. e4 {[%emt 0:00:04]} e6 {[%emt 0:00:04]} 2. d3 {[%emt 0:00:12]} d5 {[%emt 0:00:04]} 3. Qe2 {[%emt 0:00:05]} Nf6 {[%emt 0:01:27]} 4. Nf3 {[%emt 0:00:11]} Be7 {[%emt 0:00:55]} 5. g3 {[%emt 0:00:53]} c5 {[%emt 0:04:46]} 6. Bg2 {[%emt 0:00:15]} Nc6 {[%emt 0:01:36]} 7. O-O {[%emt 0:01:01]} O-O {[%emt 0:01:11]} 8. e5 {[%emt 0:00:17]} Nd7 {[%emt 0:00:21]} 9. c4 {[%emt 0:01:49]} d4 {[%emt 0:06:26]} 10. Re1 {[%emt 0:02:50]} Qc7 {[%emt 0:04:28]} 11. Bf4 {[%emt 0:02:51]} a6 {[%emt 0:03:07]} 12. h4 {[%emt 0:00:06]} b5 {[%emt 0:09:21]} 13. b3 {[%emt 0:01:29]} Bb7 {[%emt 0:02:55]} 14. Nbd2 {[%emt 0:05:58]} Rfe8 {[%emt 0:07:23]} 15. Nh2 {[%emt 0:02:09]} Nf8 {[%emt 0:03:46]} 16. h5 {[%emt 0:04:13]} h6 {[%emt 0:02:40]} 17. Ng4 {[%emt 0:02:12]} Nh7 {[%emt 0:07:25]} 18. Ne4 {[%emt 0:01:34]} Qd8 {[%emt 0:04:28]} 19. Nh2 {[%emt 0:20:29]} Rc8 {[%emt 0:06:28]} 20. g4 {[%emt 0:05:21]} Na5 {[%emt 0:02:55]} 21. Nf3 {[%emt 0:02:02]} Bxe4 {[%emt 0:03:31]} 22. Qxe4 {[%emt 0:00:06]} Ng5 {[%emt 0:00:08]} 23. Nxg5 {[%emt 0:00:05]} Bxg5 {[%emt 0:00:08]} 24. Bg3 {[%emt 0:00:23]} Bh4 {[%emt 0:05:17]} 25. Bf4 {[%emt 0:03:02]} Bg5 {[%emt 0:02:42]} 26. Bh2 {[%emt 0:00:45]} bxc4 {[%emt 0:01:54]} 27. bxc4 {[%emt 0:00:09]} Rb8 {[%emt 0:00:19]} 28. f4 {[%emt 0:03:50]} Bh4 {[%emt 0:00:30]} 29. Reb1 {[%emt 0:00:09]} Rb6 {[%emt 0:03:20]} 30. f5 {[%emt 0:02:04]} Bg5 {[%emt 0:03:29]} 31. fxe6 {[%emt 0:01:20]} Be3+ {[%emt 0:00:35]} 32. Kh1 {[%emt 0:00:27]} Rexe6 {[%emt 0:01:24]} 33. Rf1 {[%emt 0:02:21]} Nc6 {[%emt 0:04:11]} 34. Qf5 {[%emt 0:00:34]} Qe8 {[%emt 0:00:24]} 35. Bd5 {[%emt 0:02:33]} Ne7 {[%emt 0:01:39]} 36. Qf3 {[%emt 0:02:37]} Nxd5 {[%emt 0:00:04]} 37. cxd5 {[%emt 0:00:07]} Re7 {[%emt 0:00:43]} 38. d6 {[%emt 0:03:46]} Rd7 {[%emt 0:02:13]} 39. Qd5 {[%emt 0:01:04]} Rb2 {[%emt 0:00:45]} 40. Rab1 {[%emt 0:00:00]} Rc2 {[%emt 0:00:00]} 41. Rb7 {[%emt 0:07:47]} c4 {[%emt 0:21:06]} 42. Qc6 {[%emt 0:11:31]} Rxh2+ {[%emt 0:12:04]} 43. Kxh2 {[%emt 0:00:09]} Qxe5+ {[%emt 0:00:03]} 44. Kh3 {[%emt 0:02:22]} Rxb7 {[%emt 0:02:42]} 45. Qxb7 {[%emt 0:00:07]} Qxd6 {[%emt 0:00:45]} 46. Qxf7+ {[%emt 0:00:36]} Kh7 {[%emt 0:00:35]} 47. Qf5+ {[%emt 0:02:26]} Kg8 {[%emt 0:00:56]} 48. Qc8+ {[%emt 0:00:06]} Kh7 {[%emt 0:00:16]} 49. Rf8 {[%emt 0:01:00]} Qxf8 {[%emt 0:00:21]} 50. Qxf8 {[%emt 0:00:06]} c3 {[%emt 0:00:03]} 51. Qc5 {[%emt 0:00:11]} Bd2 {[%emt 0:00:28]} 52. Kg3 {[%emt 0:00:08]} Be1+ {[%emt 0:00:12]} 53. Kf3 {[%emt 0:00:05]} Bd2 {[%emt 0:00:04]} 54. Ke2 {[%emt 0:00:05]} 1-0

[Event "FIDE WYCC Girls U18 2023"]
[Site "Montesilvano"]
[Date "2023.11.16"]
[Round "4.12"]
[White "Striskova, Lucia"]
[Black "Gasimova, Samra"]
[Result "1/2-1/2"]
[ECO "C10"]
[WhiteElo "2039"]
[BlackElo "1860"]
[Annotator "NA RC"]
[PlyCount "49"]
[EventDate "2023.11.13"]
[EventType "swiss"]
[EventCountry "ITA"]
[SourceTitle "playchess.com"]
[Source "ChessBase"]
[SourceQuality "1"]
[TimeControl "40/5400+30:1800+30"]

1. e4 {[%emt 0:03:18]} e6 {[%emt 0:00:34]} 2. d4 {[%emt 0:00:27]} d5 {[%emt 0:00:04]} 3. Nc3 {[%emt 0:00:21]} Be7 {[%emt 0:00:09]} 4. Nf3 {[%emt 0:01:01]} Nf6 {[%emt 0:00:39]} 5. Bd3 {[%emt 0:01:15]} c5 {[%emt 0:00:23]} 6. dxc5 {[%emt 0:01:44]} dxe4 {[%emt 0:00:18]} 7. Bb5+ {[%emt 0:01:42]} Bd7 {[%emt 0:12:36]} 8. Ng5 {[%emt 0:05:00]} O-O {[%emt 0:11:17]} 9. Bxd7 {[%emt 0:08:57]} Nbxd7 {[%emt 0:03:57]} 10. c6 {[%emt 0:05:00]} bxc6 {[%emt 0:01:43]} 11. Ngxe4 {[%emt 0:00:08]} Nc5 {[%emt 0:03:00]} 12. Qxd8 {[%emt 0:03:30]} Rfxd8 {[%emt 0:00:19]} 13. Nxf6+ {[%emt 0:03:38]} Bxf6 {[%emt 0:00:57]} 14. Bd2 {[%emt 0:01:50]} Bxc3 {[%emt 0:10:20]} 15. Bxc3 {[%emt 0:00:11]} Na4 {[%emt 0:00:06]} 16. Ke2 {[%emt 0:07:18]} Nxc3+ {[%emt 0:04:13]} 17. bxc3 {[%emt 0:00:08]} Kf8 {[%emt 0:01:14]} 18. Rab1 {[%emt 0:00:11]} Rab8 {[%emt 0:04:02]} 19. Rhd1 {[%emt 0:00:12]} Ke7 {[%emt 0:01:45]} 20. Rxd8 {[%emt 0:00:10]} Rxd8 {[%emt 0:00:20]} 21. Rb7+ {[%emt 0:00:09]} Rd7 {[%emt 0:00:07]} 22. Rb8 {[%emt 0:00:07]} Rd8 {[%emt 0:01:04]} 23. Rb7+ {[%emt 0:00:09]} Rd7 {[%emt 0:00:19]} 24. Rb8 {[%emt 0:00:23]} Rd8 {[%emt 0:00:39]} 25. Rb7+ {[%emt 0:00:09]} 1/2-1/2

[Event "FIDE WYCC Girls U18 2023"]
[Site "Montesilvano"]
[Date "2023.11.16"]
[Round "4.13"]
[White "Lindstad, Livia"]
[Black "Trifoi, Mihaela-Ioana"]
[Result "0-1"]
[ECO "B12"]
[WhiteElo "1848"]
[BlackElo "2021"]
[Annotator "NA RC"]
[PlyCount "93"]
[EventDate "2023.11.13"]
[EventType "swiss"]
[EventCountry "ITA"]
[SourceTitle "playchess.com"]
[Source "ChessBase"]
[SourceQuality "1"]
[TimeControl "40/5400+30:1800+30"]

1. e4 {[%emt 0:00:07]} c6 {[%emt 0:00:14]} 2. d4 {[%emt 0:00:34]} d5 {[%emt 0:00:06]} 3. f3 {[%emt 0:00:30]} e6 {[%emt 0:01:53]} 4. Nc3 {[%emt 0:00:22]} Bb4 {[%emt 0:01:29]} 5. Bf4 {[%emt 0:00:42]} Bd7 {[%emt 0:06:04]} 6. Qd3 {[%emt 0:02:40]} Ne7 {[%emt 0:14:07]} 7. a3 {[%emt 0:07:05]} Ba5 {[%emt 0:00:06]} 8. Nge2 {[%emt 0:01:34]} Bc7 {[%emt 0:00:41]} 9. e5 {[%emt 0:04:22]} Ng6 {[%emt 0:01:09]} 10. Bg3 {[%emt 0:01:13]} c5 {[%emt 0:00:35]} 11. h4 {[%emt 0:06:31]} cxd4 {[%emt 0:05:50]} 12. Nb5 {[%emt 0:11:07]} Bxe5 {[%emt 0:05:30]} 13. f4 {[%emt 0:04:49]} Qa5+ {[%emt 0:01:40]} 14. b4 {[%emt 0:15:42]} Qxb5 {[%emt 0:05:45]} 15. Qxb5 {[%emt 0:00:23]} Bxb5 {[%emt 0:00:05]} 16. fxe5 {[%emt 0:00:10]} Nc6 {[%emt 0:01:00]} 17. Nc1 {[%emt 0:02:41]} Bxf1 {[%emt 0:04:09]} 18. Rxf1 {[%emt 0:01:43]} h5 {[%emt 0:00:33]} 19. Nd3 {[%emt 0:00:59]} a6 {[%emt 0:03:07]} 20. O-O-O {[%emt 0:02:56]} b5 {[%emt 0:01:58]} 21. Rf3 {[%emt 0:08:24]} a5 {[%emt 0:01:57]} 22. Rdf1 {[%emt 0:02:54]} O-O {[%emt 0:00:23]} 23. Kb2 {[%emt 0:01:46]} axb4 {[%emt 0:00:35]} 24. axb4 {[%emt 0:01:35]} Ra4 {[%emt 0:00:20]} 25. Kb3 {[%emt 0:01:08]} Rfa8 {[%emt 0:01:17]} 26. Kb2 {[%emt 0:06:50]} R8a7 {[%emt 0:02:56]} 27. Kc1 {[%emt 0:05:37]} Nxb4 {[%emt 0:00:31]} 28. Kd2 {[%emt 0:00:45]} Rc7 {[%emt 0:04:36]} 29. Rc1 {[%emt 0:01:59]} Na2 {[%emt 0:00:57]} 30. Rb1 {[%emt 0:01:49]} Nc3 {[%emt 0:01:23]} 31. Rb2 {[%emt 0:01:14]} Ra1 {[%emt 0:02:44]} 32. Nf2 {[%emt 0:00:10]} Rg1 {[%emt 0:01:00]} 33. Rb3 {[%emt 0:02:42]} Rxg2 {[%emt 0:00:17]} 34. Kd3 {[%emt 0:02:11]} Rc4 {[%emt 0:01:36]} 35. Nh3 {[%emt 0:00:41]} Rxg3 {[%emt 0:01:58]} 36. Rxg3 {[%emt 0:00:23]} Nxe5+ {[%emt 0:00:05]} 37. Kd2 {[%emt 0:00:33]} Ne4+ {[%emt 0:00:09]} 38. Kd1 {[%emt 0:00:27]} Nxg3 {[%emt 0:00:15]} 39. Rxg3 {[%emt 0:00:06]} Ng4 {[%emt 0:00:29]} 40. Nf4 {[%emt 0:00:00]} g6 {[%emt 0:00:00]} 41. Kc1 {[%emt 0:07:41]} Kf8 {[%emt 0:02:35]} 42. Nd3 {[%emt 0:01:33]} Ne3 {[%emt 0:00:25]} 43. Ne5 {[%emt 0:00:13]} Rxc2+ {[%emt 0:00:23]} 44. Kb1 {[%emt 0:00:07]} Rg2 {[%emt 0:00:07]} 45. Rf3 {[%emt 0:00:23]} Nf5 {[%emt 0:00:47]} 46. Rf4 {[%emt 0:01:04]} Re2 {[%emt 0:00:25]} 47. Re4 0-1

[Event "FIDE WYCC Girls U18 2023"]
[Site "Montesilvano"]
[Date "2023.11.16"]
[Round "4.14"]
[White "Margadgua Erdenebayar"]
[Black "Shohradova, Lala"]
[Result "1/2-1/2"]
[ECO "C07"]
[WhiteElo "2013"]
[BlackElo "1846"]
[Annotator "NA RC"]
[PlyCount "90"]
[EventDate "2023.11.13"]
[EventType "swiss"]
[EventCountry "ITA"]
[SourceTitle "playchess.com"]
[Source "ChessBase"]
[SourceQuality "1"]
[TimeControl "40/5400+30:1800+30"]

1. e4 {[%emt 0:00:02]} e6 {[%emt 0:00:04]} 2. d4 {[%emt 0:00:23]} d5 {[%emt 0:00:26]} 3. Nd2 {[%emt 0:00:10]} c5 {[%emt 0:00:21]} 4. exd5 {[%emt 0:00:39]} Qxd5 {[%emt 0:00:34]} 5. Ngf3 {[%emt 0:00:21]} cxd4 {[%emt 0:01:55]} 6. Bc4 {[%emt 0:00:12]} Qd6 {[%emt 0:03:49]} 7. O-O {[%emt 0:01:37]} Nf6 {[%emt 0:01:41]} 8. Nb3 {[%emt 0:00:41]} Nc6 {[%emt 0:01:14]} 9. Qe2 {[%emt 0:04:02]} Qc7 {[%emt 0:11:45]} 10. Rd1 {[%emt 0:04:26]} Bd6 {[%emt 0:05:45]} 11. h3 {[%emt 0:05:38]} O-O {[%emt 0:02:08]} 12. Nbxd4 {[%emt 0:01:25]} a6 {[%emt 0:15:18]} 13. c3 {[%emt 0:11:21]} Nxd4 {[%emt 0:07:51]} 14. Rxd4 {[%emt 0:03:08]} b5 {[%emt 0:05:04]} 15. Bd3 {[%emt 0:01:53]} Bb7 {[%emt 0:03:57]} 16. Rh4 {[%emt 0:08:49]} g6 {[%emt 0:04:36]} 17. Bg5 {[%emt 0:06:13]} Be7 {[%emt 0:00:40]} 18. a4 {[%emt 0:01:16]} Rfd8 {[%emt 0:02:13]} 19. Ne5 {[%emt 0:11:24]} Rd5 {[%emt 0:08:32]} 20. Re1 {[%emt 0:06:22]} Rf8 {[%emt 0:01:13]} 21. axb5 {[%emt 0:06:29]} axb5 {[%emt 0:00:47]} 22. Bxb5 {[%emt 0:00:50]} Nh5 {[%emt 0:05:59]} 23. Bxe7 {[%emt 0:05:44]} Qxe7 {[%emt 0:00:01]} 24. Rb4 {[%emt 0:00:07]} Rfd8 {[%emt 0:01:48]} 25. Ng4 {[%emt 0:01:10]} Ba8 {[%emt 0:02:20]} 26. Qe3 {[%emt 0:03:06]} Ng7 {[%emt 0:04:01]} 27. Nh6+ {[%emt 0:01:16]} Kf8 {[%emt 0:01:50]} 28. Ng4 {[%emt 0:02:38]} Nf5 {[%emt 0:02:31]} 29. Qf4 {[%emt 0:00:58]} Kg7 {[%emt 0:04:25]} 30. Ne3 {[%emt 0:00:29]} Rc5 {[%emt 0:00:37]} 31. Nxf5+ {[%emt 0:01:04]} Rxf5 {[%emt 0:00:02]} 32. Qe3 {[%emt 0:00:08]} Rb8 {[%emt 0:01:08]} 33. Bd3 {[%emt 0:02:53]} Rxb4 {[%emt 0:00:25]} 34. cxb4 {[%emt 0:00:34]} Rg5 {[%emt 0:00:26]} 35. Be4 {[%emt 0:00:58]} Bxe4 {[%emt 0:00:37]} 36. Qxe4 {[%emt 0:00:01]} Rb5 {[%emt 0:00:10]} 37. Qd4+ {[%emt 0:00:11]} e5 {[%emt 0:00:18]} 38. Qd3 {[%emt 0:04:34]} Qxb4 {[%emt 0:00:37]} 39. Re2 {[%emt 0:00:01]} Rc5 {[%emt 0:00:56]} 40. Qe3 {[%emt 0:00:00]} f6 {[%emt 0:00:00]} 41. g3 {[%emt 0:02:56]} Rd5 {[%emt 0:07:04]} 42. Qa7+ {[%emt 0:10:17]} Kh6 {[%emt 0:00:19]} 43. Qe3+ {[%emt 0:03:43]} Kg7 {[%emt 0:00:07]} 44. Qa7+ {[%emt 0:02:20]} Kh6 {[%emt 0:00:03]} 45. Qe3+ {[%emt 0:04:45]} Kg7 {[%emt 0:05:00]} 1/2-1/2

[Event "FIDE WYCC Girls U18 2023"]
[Site "Montesilvano"]
[Date "2023.11.16"]
[Round "4.15"]
[White "Bhagyashree Patil"]
[Black "Dakic, Marta"]
[Result "1-0"]
[ECO "C50"]
[WhiteElo "1830"]
[BlackElo "2013"]
[Annotator "NA RC"]
[PlyCount "73"]
[EventDate "2023.11.13"]
[EventType "swiss"]
[EventCountry "ITA"]
[SourceTitle "playchess.com"]
[Source "ChessBase"]
[SourceQuality "1"]
[TimeControl "40/5400+30:1800+30"]

1. e4 {[%emt 0:00:09]} e5 {[%emt 0:00:27]} 2. Nf3 {[%emt 0:00:10]} Nc6 {[%emt 0:00:15]} 3. Bc4 {[%emt 0:00:14]} Nf6 {[%emt 0:00:14]} 4. d3 {[%emt 0:00:07]} Bc5 {[%emt 0:00:06]} 5. c3 {[%emt 0:00:06]} d6 {[%emt 0:00:23]} 6. Nbd2 {[%emt 0:00:10]} a5 {[%emt 0:00:55]} 7. a4 {[%emt 0:05:02]} O-O {[%emt 0:00:11]} 8. O-O {[%emt 0:00:31]} Ba7 {[%emt 0:02:27]} 9. h3 {[%emt 0:00:44]} Be6 {[%emt 0:01:30]} 10. Re1 {[%emt 0:01:44]} Bxc4 {[%emt 0:07:07]} 11. Nxc4 {[%emt 0:00:28]} h6 {[%emt 0:03:10]} 12. Ne3 {[%emt 0:07:32]} Ne7 {[%emt 0:15:03]} 13. Nh4 {[%emt 0:02:40]} Kh7 {[%emt 0:05:29]} 14. Nef5 {[%emt 0:03:29]} Ng6 {[%emt 0:00:48]} 15. Nf3 {[%emt 0:05:58]} Qd7 {[%emt 0:03:25]} 16. d4 {[%emt 0:14:39]} Rfe8 {[%emt 0:14:27]} 17. Qd3 {[%emt 0:06:23]} Rad8 {[%emt 0:03:07]} 18. Ng3 {[%emt 0:11:58]} d5 {[%emt 0:05:52]} 19. exd5 {[%emt 0:10:00]} exd4 {[%emt 0:01:23]} 20. Rxe8 {[%emt 0:01:49]} Rxe8 {[%emt 0:00:14]} 21. c4 {[%emt 0:00:40]} c6 {[%emt 0:03:49]} 22. dxc6 {[%emt 0:01:18]} Qxc6 {[%emt 0:08:16]} 23. Bd2 {[%emt 0:01:59]} Kg8 {[%emt 0:07:26]} 24. Nxd4 {[%emt 0:09:26]} Qd7 {[%emt 0:02:13]} 25. Be3 {[%emt 0:01:10]} Nf4 {[%emt 0:03:59]} 26. Qf5 {[%emt 0:06:03]} Qxf5 {[%emt 0:04:55]} 27. Ngxf5 {[%emt 0:01:48]} Nd3 {[%emt 0:01:00]} 28. b3 {[%emt 0:01:01]} Nc5 {[%emt 0:00:32]} 29. Rb1 {[%emt 0:02:34]} Nfe4 {[%emt 0:02:10]} 30. Nb5 {[%emt 0:01:19]} Bb8 {[%emt 0:02:29]} 31. g4 {[%emt 0:03:29]} b6 {[%emt 0:01:00]} 32. Rd1 {[%emt 0:00:50]} Kf8 {[%emt 0:00:45]} 33. Rd5 {[%emt 0:00:47]} Nxb3 {[%emt 0:00:46]} 34. Bxb6 {[%emt 0:00:16]} Rc8 {[%emt 0:00:41]} 35. Rd7 {[%emt 0:00:53]} Nbc5 {[%emt 0:00:33]} 36. Rd4 {[%emt 0:00:27]} Ng5 {[%emt 0:00:42]} 37. Bxc5+ {[%emt 0:00:11]} 1-0

[Event "FIDE WYCC Girls U18 2023"]
[Site "Montesilvano"]
[Date "2023.11.16"]
[Round "4.16"]
[White "Sovetbekova, Nurai"]
[Black "Sosovickova, Jana"]
[Result "1-0"]
[ECO "D37"]
[WhiteElo "1801"]
[BlackElo "2013"]
[Annotator "NA RC"]
[PlyCount "111"]
[EventDate "2023.11.13"]
[EventType "swiss"]
[EventCountry "ITA"]
[SourceTitle "playchess.com"]
[Source "ChessBase"]
[SourceQuality "1"]
[TimeControl "40/5400+30:1800+30"]

1. d4 {[%emt 0:00:04]} d5 {[%emt 0:00:05]} 2. Nf3 {[%emt 0:00:04]} Nf6 {[%emt 0:00:14]} 3. c4 {[%emt 0:00:00]} e6 {[%emt 0:01:46]} 4. Nc3 {[%emt 0:00:06]} Be7 {[%emt 0:00:54]} 5. Bg5 {[%emt 0:00:17]} Nbd7 {[%emt 0:00:26]} 6. e3 {[%emt 0:01:31]} c6 {[%emt 0:00:29]} 7. Bd3 {[%emt 0:00:07]} O-O {[%emt 0:05:27]} 8. O-O {[%emt 0:01:54]} Re8 {[%emt 0:03:46]} 9. Qc2 {[%emt 0:00:24]} Nf8 {[%emt 0:21:08]} 10. c5 {[%emt 0:02:20]} N6d7 {[%emt 0:01:37]} 11. Bxe7 Qxe7 12. e4 {[%emt 0:02:20]} dxe4 {[%emt 0:06:58]} 13. Nxe4 {[%emt 0:01:24]} Rd8 {[%emt 0:04:53]} 14. b4 {[%emt 0:19:53]} Nf6 {[%emt 0:04:11]} 15. Nd6 {[%emt 0:07:15]} Ne8 {[%emt 0:01:15]} 16. Nxe8 {[%emt 0:01:34]} Qxe8 {[%emt 0:01:11]} 17. Rfe1 {[%emt 0:04:50]} h6 {[%emt 0:02:31]} 18. Rad1 {[%emt 0:07:56]} Nd7 {[%emt 0:03:38]} 19. Be4 {[%emt 0:06:43]} Nf6 {[%emt 0:00:50]} 20. Ne5 {[%emt 0:00:27]} Nd5 {[%emt 0:05:07]} 21. Bxd5 {[%emt 0:03:26]} exd5 {[%emt 0:08:44]} 22. Re3 {[%emt 0:02:37]} Be6 {[%emt 0:04:19]} 23. Rde1 {[%emt 0:02:50]} Qe7 {[%emt 0:01:01]} 24. Nxf7 {[%emt 0:12:08]} Qxf7 {[%emt 0:00:13]} 25. Rxe6 {[%emt 0:00:07]} Re8 {[%emt 0:00:37]} 26. Rxe8+ {[%emt 0:08:47]} Rxe8 {[%emt 0:00:05]} 27. Rxe8+ {[%emt 0:01:41]} Qxe8 {[%emt 0:00:04]} 28. Qd2 {[%emt 0:00:05]} Qe4 {[%emt 0:01:28]} 29. h3 {[%emt 0:00:28]} Kh7 {[%emt 0:02:52]} 30. Kh2 {[%emt 0:00:22]} a6 {[%emt 0:02:24]} 31. Qe3 {[%emt 0:01:54]} Qb1 {[%emt 0:00:48]} 32. a3 {[%emt 0:00:14]} Qf1 {[%emt 0:01:02]} 33. Kg3 {[%emt 0:02:06]} Qc4 {[%emt 0:04:59]} 34. Kf4 {[%emt 0:01:46]} Qf1 {[%emt 0:01:40]} 35. g4 {[%emt 0:02:41]} Qb1 {[%emt 0:01:31]} 36. Ke5 {[%emt 0:02:48]} Qg6 {[%emt 0:00:32]} 37. Qf3 {[%emt 0:00:36]} Qe8+ {[%emt 0:00:35]} 38. Kf4 {[%emt 0:00:11]} g5+ {[%emt 0:04:17]} 39. Kg3 {[%emt 0:00:18]} Qe1 {[%emt 0:00:10]} 40. Kg2 {[%emt 0:00:00]} Kg7 {[%emt 0:00:00]} 41. Qe3 {[%emt 0:06:26]} Qb1 {[%emt 0:06:34]} 42. Qe7+ {[%emt 0:02:07]} Kg6 {[%emt 0:03:32]} 43. Qxb7 {[%emt 0:07:53]} Qe4+ {[%emt 0:00:18]} 44. Kh2 {[%emt 0:00:21]} Qxd4 {[%emt 0:09:53]} 45. Qxc6+ {[%emt 0:00:48]} Kf7 {[%emt 0:01:00]} 46. Qd7+ {[%emt 0:01:49]} Kf6 {[%emt 0:03:53]} 47. Qf5+ {[%emt 0:05:03]} Ke7 {[%emt 0:00:17]} 48. Kg2 {[%emt 0:00:36]} Kd8 {[%emt 0:00:47]} 49. Qf8+ {[%emt 0:02:12]} Kd7 {[%emt 0:00:58]} 50. Qd6+ {[%emt 0:01:03]} Ke8 {[%emt 0:00:12]} 51. Qe6+ {[%emt 0:01:37]} Kd8 {[%emt 0:00:11]} 52. c6 {[%emt 0:00:59]} Qe4+ {[%emt 0:00:15]} 53. Qxe4 {[%emt 0:00:05]} dxe4 {[%emt 0:00:02]} 54. a4 {[%emt 0:00:08]} Kc7 {[%emt 0:00:16]} 55. b5 {[%emt 0:00:04]} Kb6 {[%emt 0:00:19]} 56. Kf1 {[%emt 0:00:09]} 1-0